fUST/lending_fUST_20250930
["ID","MTS","AMOUNT","RATE_DAILY","PERIOD"]
[388451988,1759175016201,314.45812828,0.00022822,2]
[388451989,1759175016222,165.54187172,0.00022822,2]
[388451990,1759175018861,1632.6,0.00022824,2]
[388451991,1759175022016,1286.87,0.00022822,2]
[388451992,1759175022745,480.0,0.00022824,2]
[388451993,1759175025542,480.0,0.00022822,2]
[388451994,1759175026298,1335.3,0.00022822,2]
[388451995,1759175028665,566.54,0.00022824,2]
[388451996,1759175031454,480.0,0.00022822,2]
[388451997,1759175032295,992.16,0.00022824,2]
[388451998,1759175032874,248.90214496,0.0002273,2]
[388451999,1759175035217,944.07,0.00022822,2]
[388452000,1759175036888,1388.02598332,0.00022822,2]
[388452001,1759175036910,350.82401668,0.00022822,2]
[388452002,1759175038195,1135.14,0.00022824,2]
[388452003,1759175042315,300.0,0.00022826,2]
[388452004,1759175043207,480.0,0.00022824,2]
[388452005,1759175043885,2465.8,0.00022817,3]
[388452006,1759175044671,480.0,0.00022826,2]
[388452007,1759175046514,480.0,0.00022824,2]
[388452008,1759175046780,480.0,0.00022822,2]
[388452009,1759175047689,480.0,0.00022822,2]
[388452010,1759175048438,1228.23,0.00022824,2]
[388452011,1759175052949,500.0,0.00022826,2]
[388452012,1759175054204,221.28,0.00022817,10]
[388452013,1759175054540,1398.73598332,0.00022822,2]
[388452014,1759175054567,560.42401668,0.00022822,2]
[388452015,1759175054599,1748.62,0.00022817,3]
[388452016,1759175056884,1087.28,0.00022824,2]
[388452017,1759175058216,480.0,0.00022826,2]
[388452018,1759175058718,560.97,0.00022822,2]
[388452019,1759175059108,480.0,0.00022822,2]
[388452020,1759175060052,714.61,0.00022822,2]
[388452021,1759175063380,608.35,0.00022822,2]
[388452022,1759175064579,184.4,0.00022817,10]
[388452023,1759175065393,874.31,0.00022817,3]
[388452024,1759175067101,2701.04598332,0.00022827,2]
[388452025,1759175067124,2298.95401668,0.00022827,2]
[388452026,1759175068192,480.0,0.00022822,2]
[388452027,1759175069124,517.29,0.00022822,2]
[388452028,1759175070047,200.0,0.00022827,10]
[388452029,1759175070368,200.0,0.00022827,10]
[388452030,1759175070396,503.48,0.00022826,2]
[388452031,1759175070422,553.09,0.00022826,2]
[388452032,1759175070735,200.0,0.00022827,10]
[388452033,1759175070845,501.76,0.00022822,2]
[388452034,1759175071045,200.0,0.00022827,10]
[388452035,1759175071367,200.0,0.00022827,10]
[388452036,1759175071765,200.0,0.00022827,10]
[388452037,1759175072285,480.0,0.00022824,2]
[388452038,1759175072776,3465.43598332,0.00022824,2]
[388452039,1759175072799,1434.47401668,0.00022824,2]
[388452040,1759175074416,480.0,0.00022822,2]
[388452041,1759175074914,2084.94,0.00022824,2]
[388452042,1759175076030,437.16,0.00022817,3]
[388452043,1759175076081,1220.46,0.00022822,2]
[388452044,1759175078077,153.67,0.00022817,10]
[388452045,1759175078804,520.52,0.00022822,2]
[388452046,1759175080016,822.95,0.00022826,2]
[388452047,1759175080218,480.0,0.00022822,2]
[388452048,1759175082538,700.79,0.00022822,2]
[388452049,1759175083721,480.0,0.00022826,2]
[388452050,1759175085846,1185.04598332,0.00022824,2]
[388452051,1759175085867,1190.74401668,0.00022824,2]
[388452052,1759175086428,500.0,0.00022822,2]
[388452053,1759175086510,218.58,0.00022817,3]
[388452054,1759175086695,500.0,0.00022822,2]
[388452055,1759175086930,500.0,0.00022822,2]
[388452056,1759175087202,500.0,0.00022823,2]
[388452057,1759175087468,500.0,0.00022823,2]
[388452058,1759175087733,500.0,0.00022824,2]
[388452059,1759175087834,690.75,0.00022822,2]
[388452060,1759175087964,500.0,0.00022826,2]
[388452061,1759175088255,500.0,0.00022826,2]
[388452062,1759175088394,393.29689068,0.00022826,2]
[388452063,1759175088541,500.0,0.00022826,2]
[388452064,1759175088778,520.94069617,0.00022826,2]
[388452066,1759175091489,768.36,0.00022817,10]
[388452067,1759175091857,480.0,0.00022826,2]
[388452068,1759175093753,480.0,0.00022824,2]
[388452069,1759175094943,689.04,0.00022824,2]
[388452070,1759175095388,68.29839647,0.00022826,2]
[388452071,1759175095411,3232.41160353,0.00022826,2]
[388452072,1759175095719,480.0,0.00022822,2]
[388452073,1759175097468,655.75,0.00022817,3]
[388452074,1759175097574,480.0,0.00022822,2]
[388452075,1759175099546,480.0,0.00022822,2]
[388452076,1759175099639,480.0,0.00022822,2]
[388452077,1759175101348,300.0,0.00022826,2]
[388452078,1759175101985,300.0,0.00022826,2]
[388452079,1759175102309,300.0,0.00022826,2]
[388452080,1759175102336,300.0,0.00022826,2]
[388452081,1759175102556,480.0,0.00022822,2]
[388452082,1759175102966,552.93,0.00022822,2]
[388452083,1759175103016,480.0,0.00022822,2]
[388452084,1759175103898,1478.91839647,0.00022826,2]
[388452085,1759175103922,383.70160353,0.00022826,2]
[388452086,1759175104307,480.0,0.00022826,2]
[388452087,1759175104386,1271.14,0.00022824,2]
[388452088,1759175106368,1000.0,0.00022827,2]
[388452089,1759175106609,151.0,0.00022827,2]
[388452090,1759175106735,1200.0,0.00022826,2]
[388452091,1759175106921,1000.0,0.00022827,2]
[388452092,1759175106956,151.0,0.00022827,2]
[388452093,1759175106990,151.0,0.00022827,2]
[388452094,1759175107020,1000.0,0.00022827,2]
[388452095,1759175107080,151.0,0.00022827,2]
[388452096,1759175107111,480.0,0.00022822,2]
[388452097,1759175107346,1000.0,0.00022827,2]
[388452098,1759175107378,1000.0,0.00022827,2]
[388452099,1759175107452,151.0,0.00022827,2]
[388452100,1759175107571,151.0,0.00022827,2]
[388452101,1759175107726,279.16839647,0.00022822,2]
[388452102,1759175107748,200.83160353,0.00022822,2]
[388452103,1759175107976,251.89971375,0.00022827,2]
[388452104,1759175108002,1000.0,0.00022827,2]
[388452105,1759175108047,483.90084491,0.00022824,2]
[388452106,1759175108086,151.0,0.00022827,2]
[388452107,1759175108187,151.0,0.00022827,2]
[388452108,1759175108611,1000.0,0.00022827,2]
[388452109,1759175108818,151.0,0.00022827,2]
[388452110,1759175109194,480.0,0.00022822,2]
[388452111,1759175109230,151.0,0.00022827,2]
[388452112,1759175109326,803.95950308,0.00022827,2]
[388452113,1759175109552,151.0,0.00022827,2]
[388452114,1759175109872,267.85796066,0.00022827,2]
[388452115,1759175110196,151.0,0.00022827,2]
[388452116,1759175110857,151.0,0.00022827,2]
[388452117,1759175111108,250.0,0.00022827,2]
[388452118,1759175111733,151.0,0.00022827,2]
[388452119,1759175111778,254.26587835,0.00022827,2]
[388452120,1759175112003,256.63513285,0.00022827,2]
[388452121,1759175112196,480.0,0.00022826,2]
[388452122,1759175112397,151.0,0.00022827,2]
[388452123,1759175112836,151.0,0.00022827,2]
[388452124,1759175113532,2302.2,0.00022824,2]
[388452125,1759175113591,151.0,0.00022827,2]
[388452126,1759175114277,151.0,0.00022827,2]
[388452127,1759175114872,151.0,0.00022827,2]
[388452128,1759175115022,1250.21,0.00022822,2]
[388452129,1759175115529,151.0,0.00022827,2]
[388452130,1759175120425,-2876.06,0.00022817,3]
[388452131,1759175120452,-583.16,0.00022822,2]
[388452132,1759175120480,-480.0,0.00022822,2]
[388452133,1759175120507,-480.0,0.00022826,2]
[388452134,1759175120537,-480.0,0.00022826,2]
[388452135,1759175120566,-50.57,0.00022827,2]
[388452136,1759175120725,-480.0,0.00022826,2]
[388452137,1759175120753,-100.43,0.00022827,2]
[388452138,1759175120785,-500.0,0.00022827,2]
[388452139,1759175120814,-151.0,0.00022827,2]
[388452140,1759175120845,-500.0,0.00022827,2]
[388452141,1759175120875,-151.0,0.00022827,2]
[388452142,1759175120906,-500.0,0.00022827,2]
[388452143,1759175120934,-151.43741575,0.00022827,2]
[388452144,1759175120963,-500.0,0.00022827,2]
[388452145,1759175120993,-500.0,0.00022827,2]
[388452146,1759175121023,-500.0,0.00022827,2]
[388452147,1759175121435,-500.0,0.00022827,2]
[388452148,1759175121952,-155.24538857,0.00022184,2]
[388452149,1759175122159,-500.0,0.00022827,2]
[388452150,1759175122577,-2616.07165374,0.00022827,2]
[388452151,1759175122591,-500.0,0.00022827,2]
[388452152,1759175122608,-500.0,0.00022827,2]
[388452153,1759175122618,-8500.01,0.00022827,2]
[388452154,1759175122643,-10000.01,0.00022827,2]
[388452155,1759175130442,-3993.66,0.00022817,3]
[388452156,1759175130470,-63.45,0.00022822,2]
[388452157,1759175130504,-1885.79,0.00022822,2]
[388452158,1759175130997,-932.04,0.00022822,2]
[388452159,1759175131024,-919.61,0.00022822,2]
[388452160,1759175131054,-1115.97,0.00022824,2]
[388452161,1759175131116,-4064.77,0.00022824,2]
[388452162,1759175131159,-585.7,0.00022824,2]
[388452163,1759175131186,-480.0,0.00022826,2]
[388452164,1759175131214,-210.37918064,0.00022826,2]
[388452165,1759175131243,-1318.52,0.00022826,2]
[388452166,1759175131269,-480.0,0.00022826,2]
[388452167,1759175131297,-480.0,0.00022826,2]
[388452168,1759175131323,-480.0,0.00022826,2]
[388452169,1759175131351,-500.0,0.00022827,2]
[388452170,1759175131384,-430.81163872,0.00022827,2]
[388452171,1759175131532,-69.18836128,0.00022827,2]
[388452172,1759175131563,-500.0,0.00022827,2]
[388452173,1759175131592,-500.0,0.00022827,2]
[388452174,1759175131737,-69.18836128,0.00022827,2]
[388452175,1759175131759,-7861.63327744,0.00022827,2]
[388452176,1759175131784,-10000.01,0.00022827,2]
[388452177,1759175131856,-10000.01,0.00022827,2]
[388452178,1759175150463,-1996.83,0.00022817,3]
[388452179,1759175150491,-482.87,0.00022822,2]
[388452180,1759175150517,-480.0,0.00022822,2]
[388452181,1759175150546,-830.68,0.00022822,2]
[388452182,1759175150574,-480.0,0.00022822,2]
[388452183,1759175150604,-631.89,0.00022822,2]
[388452184,1759175150710,-998.41,0.00022817,3]
[388452185,1759175150738,-480.0,0.00022822,2]
[388452186,1759175150767,-480.0,0.00022822,2]
[388452187,1759175150795,-480.0,0.00022822,2]
[388452188,1759175150823,-480.0,0.00022822,2]
[388452189,1759175150851,-480.0,0.00022822,2]
[388452190,1759175150879,-975.45,0.00022824,2]
[388452191,1759175151010,-2587.57,0.00022824,2]
[388452192,1759175151038,-480.0,0.00022826,2]
[388452193,1759175151067,-480.0,0.00022826,2]
[388452194,1759175151096,-480.0,0.00022826,2]
[388452195,1759175151123,-480.0,0.00022826,2]
[388452196,1759175151187,-480.0,0.00022826,2]
[388452197,1759175151339,-480.0,0.00022826,2]
[388452198,1759175151367,-480.0,0.00022826,2]
[388452199,1759175151586,-7.76,0.00022827,2]
[388452200,1759175151600,-480.0,0.00022827,2]
[388452201,1759175151624,-24.87,0.00022827,2]
[388452202,1759175151666,-480.0,0.00022822,2]
[388452203,1759175151680,-480.0,0.00022827,2]
[388452204,1759175151703,-480.0,0.00022822,2]
[388452205,1759175151712,-7600.01,0.00022827,2]
[388452206,1759175151726,-10000.01,0.00022827,2]
[388452208,1759175170632,-499.21,0.00022817,3]
[388452209,1759175170661,-709.63,0.00022822,2]
[388452210,1759175170690,-525.21,0.00022822,2]
[388452211,1759175170718,-480.0,0.00022822,2]
[388452212,1759175170747,-584.79,0.00022822,2]
[388452213,1759175170776,-480.0,0.00022822,2]
[388452214,1759175170807,-480.0,0.00022822,2]
[388452215,1759175170835,-512.51,0.00022822,2]
[388452216,1759175170864,-481.7384302,0.00022822,2]
[388452217,1759175170891,-8.9138896,0.00022822,2]
[388452218,1759175171056,-476.0053604,0.00022822,2]
[388452219,1759175171285,-480.0,0.00022822,2]
[388452220,1759175171317,-690.71,0.00022824,2]
[388452221,1759175171346,-300.0,0.00022825,2]
[388452222,1759175171374,-480.0,0.00022826,2]
[388452223,1759175171403,-480.0,0.00022826,2]
[388452224,1759175171432,-545.6092792,0.00022826,2]
[388452225,1759175171547,-3095.3607208,0.00022826,2]
[388452226,1759175171577,-480.0,0.00022826,2]
[388452227,1759175171621,-480.0,0.00022826,2]
[388452228,1759175171653,-524.38,0.00022826,2]
[388452229,1759175171689,-360.5285584,0.00022826,2]
[388452230,1759175171887,-119.4714416,0.00022826,2]
[388452231,1759175171917,-500.33928922,0.00022826,2]
[388452232,1759175171946,-615.48956978,0.00022826,2]
[388452233,1759175171976,-480.0,0.00022826,2]
[388452234,1759175172006,-480.0,0.00022826,2]
[388452235,1759175172034,-511.37387211,0.00022826,2]
[388452236,1759175172067,-480.0,0.00022826,2]
[388452237,1759175172095,-480.0,0.00022826,2]
[388452238,1759175172124,-868.1,0.00022826,2]
[388452239,1759175172155,-450.46165458,0.00022826,2]
[388452240,1759175172361,-29.53834542,0.00022826,2]
[388452241,1759175172392,-500.0,0.00022826,2]
[388452242,1759175172869,249.6,0.00022817,3]
[388452243,1759175174391,480.0,0.00022826,2]
[388452244,1759175175295,1015.13,0.00022826,2]
[388452245,1759175175525,774.22,0.00022822,2]
[388452246,1759175176915,480.0,0.00022826,2]
[388452247,1759175177016,480.0,0.00022822,2]
[388452248,1759175177117,339.02397238,0.00022826,2]
[388452249,1759175177145,500.0,0.00022826,2]
[388452250,1759175177171,500.0,0.00022826,2]
[388452251,1759175177197,500.0,0.00022826,2]
[388452252,1759175177223,500.0,0.00022826,2]
[388452253,1759175177253,339.02397238,0.00022826,2]
[388452254,1759175177925,480.0,0.00022826,2]
[388452255,1759175177975,480.0,0.00022822,2]
[388452256,1759175178002,480.0,0.00022826,2]
[388452257,1759175179669,1343.9353644,0.00022824,2]
[388452258,1759175179693,4145.1346356,0.00022824,2]
[388452259,1759175180383,480.0,0.00022826,2]
[388452260,1759175180884,480.0,0.00022822,2]
[388452261,1759175181558,4894.8753644,0.00022822,2]
[388452262,1759175181580,4070.8546356,0.00022822,2]
[388452263,1759175181792,500.0,0.00022826,2]
[388452264,1759175181847,500.0,0.00022826,2]
[388452265,1759175181904,374.11058513,0.00022826,2]
[388452266,1759175182610,748.85,0.00022817,3]
[388452267,1759175183203,480.0,0.00022822,2]
[388452268,1759175183803,480.0,0.00022826,2]
[388452269,1759175184529,480.0,0.00022826,2]
[388452270,1759175184820,906.55,0.00022822,2]
[388452271,1759175185794,472.11652225,0.00022826,2]
[388452272,1759175185987,480.0,0.00022822,2]
[388452273,1759175186901,507.52825702,0.00022827,2]
[388452274,1759175186925,492.47174298,0.00022827,2]
[388452275,1759175188357,1000.0,0.00022827,2]
[388452276,1759175188781,623.42,0.00022822,2]
[388452277,1759175189315,824.52,0.00022817,10]
[388452278,1759175189531,1000.0,0.00022827,2]
[388452279,1759175189778,1868.33,0.00022826,2]
[388452280,1759175189903,403.37011725,0.00022824,2]
[388452281,1759175190174,480.0,0.00022822,2]
[388452282,1759175190592,1000.0,0.00022827,2]
[388452283,1759175190631,528.3,0.00022826,2]
[388452284,1759175191321,-3088.27483061,0.00022827,2]
[388452285,1759175191431,-10000.01,0.00022827,2]
[388452286,1759175191594,-10000.01,0.00022827,2]
[388452287,1759175191749,622.19845229,0.00022827,2]
[388452288,1759175191793,-9377.81154771,0.00022827,2]
[388452289,1759175192476,480.0,0.00022826,2]
[388452290,1759175192515,480.0,0.00022822,2]
[388452291,1759175193749,197.39968748,0.00022826,2]
[388452292,1759175193771,282.60031252,0.00022826,2]
[388452293,1759175195586,480.0,0.00022826,2]
[388452294,1759175196360,1981.92,0.00022822,2]
[388452295,1759175196735,2158.59,0.00022822,2]
[388452296,1759175197653,480.0,0.00022822,2]
[388452297,1759175197686,1377.17,0.00022824,2]
[388452298,1759175197803,480.0,0.00022822,2]
[388452299,1759175198116,542.08872935,0.00022826,2]
[388452300,1759175200718,480.0,0.00022822,2]
[388452301,1759175200917,480.0,0.00022826,2]
[388452302,1759175201453,480.0,0.00022826,2]
[388452303,1759175201601,771.14,0.00022822,2]
[388452304,1759175202720,2358.96,0.00022826,2]
[388452305,1759175203250,480.0,0.00022826,2]
[388452306,1759175204932,480.0,0.00022826,2]
[388452307,1759175210574,-2000.0,0.00022822,7]
[388452308,1759175210602,-2000.0,0.00022822,7]
[388452309,1759175210633,-0.01,0.00022822,7]
[388452310,1759175210771,-1999.99,0.00022822,7]
[388452311,1759175210799,-746.42025771,0.00022822,7]
[388452312,1759175210826,-480.0,0.00022822,2]
[388452313,1759175210856,-1633.82,0.00022822,2]
[388452314,1759175210929,-480.0,0.00022826,2]
[388452315,1759175211162,-6849.69075523,0.00022827,2]
[388452316,1759175211200,-480.0,0.00022826,2]
[388452317,1759175211209,-9520.01,0.00022827,2]
[388452318,1759175220666,-2000.0,0.00022729,2]
[388452319,1759175220695,-2000.0,0.00022729,2]
[388452320,1759175220725,-0.01,0.00022729,2]
[388452321,1759175220777,-1999.99,0.00022729,2]
[388452322,1759175220998,-2000.0,0.00022729,2]
[388452323,1759175221027,-2000.0,0.00022729,2]
[388452324,1759175221055,-0.01,0.00022729,2]
[388452325,1759175221112,-1999.99,0.00022729,2]
[388452326,1759175226247,-300.0,0.00022728,2]
[388452327,1759175226274,-2000.0,0.00022729,2]
[388452328,1759175226301,-2000.0,0.00022729,2]
[388452329,1759175226366,-1400.01,0.00022729,2]
[388452330,1759175226406,-599.99,0.00022729,2]
[388452331,1759175226434,-2000.0,0.00022729,2]
[388452332,1759175226462,-2000.0,0.00022729,2]
[388452333,1759175226544,-800.03,0.00022729,2]
[388452334,1759175226587,-1199.97,0.00022729,2]
[388452335,1759175226806,-607.479,0.00022729,2]
[388452336,1759175226835,-812.95,0.00022817,3]
[388452337,1759175226863,-480.0,0.00022822,2]
[388452338,1759175226892,-790.542,0.00022822,2]
[388452339,1759175226975,-2218.128,0.00022822,2]
[388452340,1759175227004,-413.314077,0.00022822,2]
[388452341,1759175227031,-480.0,0.00022822,2]
[388452342,1759175227057,-1141.41,0.00022822,2]
[388452343,1759175227083,-481.40269373,0.00022822,2]
[388452344,1759175227288,-1057.06,0.00022822,2]
[388452345,1759175227316,-480.0,0.00022822,2]
[388452346,1759175227343,-480.0,0.00022822,2]
[388452347,1759175227371,-257.46095742,0.00022824,2]
[388452348,1759175227397,-480.0,0.00022824,2]
[388452349,1759175227423,-480.0,0.00022826,2]
[388452350,1759175227449,-480.0,0.00022826,2]
[388452351,1759175227475,-762.69,0.00022826,2]
[388452352,1759175227500,-480.0,0.00022826,2]
[388452353,1759175227750,-71.83095742,0.00022826,2]
[388452354,1759175227769,-408.16904258,0.00022826,2]
[388452355,1759175227779,-71.83095742,0.00022826,2]
[388452356,1759175227795,-480.0,0.00022826,2]
[388452357,1759175227808,-44.43904258,0.00022826,2]
[388452358,1759175227818,-435.56095742,0.00022826,2]
[388452359,1759175227835,-44.43904258,0.00022826,2]
[388452360,1759175227845,-480.0,0.00022826,2]
[388452361,1759175227853,-238.25095742,0.00022826,2]
[388452362,1759175227871,-393.93904258,0.00022826,2]
[388452363,1759175227880,-86.06095742,0.00022826,2]
[388452364,1759175227893,-85.58808516,0.00022826,2]
[388452365,1759175230753,-480.0,0.00022822,2]
[388452366,1759175230782,-480.0,0.00022822,2]
[388452367,1759175230811,-308.35095742,0.00022826,2]
[388452368,1759175230837,480.0,0.00022826,2]
[388452369,1759175231092,500.0,0.00022826,2]
[388452370,1759175231122,500.0,0.00022826,2]
[388452371,1759175231148,343.99,0.00022826,2]
[388452372,1759175231172,625.86091954,0.00022826,2]
[388452373,1759175231198,500.0,0.00022826,2]
[388452374,1759175231419,606.85500027,0.00022826,2]
[388452375,1759175231449,500.0,0.00022826,2]
[388452376,1759175231756,194.98272228,0.00022826,2]
[388452377,1759175232026,496.56,0.00022822,2]
[388452378,1759175232314,1072.98588114,0.00022826,2]
[388452379,1759175233079,549.62,0.00022826,2]
[388452380,1759175234019,1092.45356193,0.00022778,2]
[388452381,1759175234042,10000.01,0.00022778,2]
[388452382,1759175234063,231.26464701,0.00022778,2]
[388452383,1759175234594,1428.69,0.00022826,2]
[388452384,1759175235178,406.47,0.00022817,3]
[388452385,1759175235725,500.0,0.00022826,2]
[388452386,1759175235946,500.0,0.00022826,2]
[388452387,1759175235974,500.0,0.00022826,2]
[388452388,1759175236883,533.47,0.00022822,2]
[388452389,1759175237293,1364.74,0.00022822,2]
[388452390,1759175238725,500.0,0.00022826,2]
[388452391,1759175239018,500.0,0.00022826,2]
[388452392,1759175239071,500.0,0.00022826,2]
[388452393,1759175239129,500.0,0.00022826,2]
[388452394,1759175239203,382.62973574,0.00022826,2]
[388452395,1759175241441,1715.7,0.00022826,2]
[388452396,1759175241689,437.04561725,0.00022826,2]
[388452397,1759175241711,1278.65438275,0.00022826,2]
[388452398,1759175242332,1715.7,0.00022826,2]
[388452399,1759175242625,1715.7,0.00022826,2]
[388452400,1759175242823,1715.7,0.00022826,2]
[388452401,1759175242894,480.0,0.00022826,2]
[388452402,1759175243073,1715.7,0.00022826,2]
[388452403,1759175243331,1378.55561725,0.00022826,2]
[388452404,1759175243353,337.14438275,0.00022826,2]
[388452405,1759175243391,966.88,0.00022826,2]
[388452406,1759175243429,305.01727772,0.00022826,2]
[388452407,1759175243482,500.0,0.00022826,2]
[388452408,1759175243565,1715.7,0.00022826,2]
[388452409,1759175243821,1715.7,0.00022826,2]
[388452410,1759175244038,500.0,0.00022826,2]
[388452411,1759175244069,1715.7,0.00022826,2]
[388452412,1759175244099,564.18871822,0.00022826,2]
[388452413,1759175244370,1679.67962131,0.00022826,2]
[388452414,1759175244395,36.02037869,0.00022826,2]
[388452415,1759175244425,480.0,0.00022826,2]
[388452416,1759175244452,480.0,0.00022822,2]
[388452417,1759175244630,1715.7,0.00022826,2]
[388452418,1759175244867,1715.7,0.00022826,2]
[388452419,1759175245182,1715.7,0.00022826,2]
[388452420,1759175245414,1715.7,0.00022826,2]
[388452421,1759175245596,1215.29,0.00022822,2]
[388452422,1759175245686,925.89962131,0.00022826,2]
[388452423,1759175245707,789.80037869,0.00022826,2]
[388452424,1759175245891,203.24,0.00022817,3]
[388452425,1759175245939,1715.7,0.00022826,2]
[388452426,1759175246189,1715.7,0.00022826,2]
[388452427,1759175246215,597.30794849,0.00022826,2]
[388452428,1759175246468,500.0,0.00022826,2]
[388452429,1759175249448,646.13,0.00022826,2]
[388452430,1759175249478,480.0,0.00022826,2]
[388452431,1759175250529,480.0,0.00022822,2]
[388452432,1759175251577,1229.7,0.00022826,2]
[388452433,1759175251703,1200.0,0.00022826,2]
[388452434,1759175253404,442.43167282,0.00022826,2]
[388452435,1759175253427,37.56832718,0.00022826,2]
[388452436,1759175253866,480.0,0.00022822,2]
[388452437,1759175254397,480.0,0.00022822,2]
[388452438,1759175255177,500.0,0.00022826,2]
[388452439,1759175255226,501.0939462,0.00022826,2]
[388452440,1759175256470,650.23,0.00022822,2]
[388452441,1759175256649,609.74,0.00022817,3]
[388452442,1759175257512,480.0,0.00022822,2]
[388452443,1759175259013,497.29,0.00022826,2]
[388452444,1759175259273,482.05150474,0.00022822,2]
[388452445,1759175260332,5282.03622188,0.00022822,2]
[388452446,1759175260353,138.99377812,0.00022822,2]
[388452447,1759175261052,480.0,0.00022826,2]
[388452448,1759175261724,480.0,0.00022822,2]
[388452449,1759175261760,823.2,0.00022822,2]
[388452450,1759175262591,-614.50813672,0.00022827,2]
[388452451,1759175262823,-10000.01,0.00022827,2]
[388452452,1759175263025,471.55374942,0.00022826,2]
[388452453,1759175270731,-1305.22,0.00022822,2]
[388452454,1759175270759,-527.73,0.00022822,2]
[388452455,1759175270786,-480.0,0.00022822,2]
[388452456,1759175270815,-480.0,0.00022826,2]
[388452457,1759175270845,-480.0,0.00022826,2]
[388452458,1759175270873,-480.0,0.00022826,2]
[388452459,1759175270901,-480.0,0.00022826,2]
[388452460,1759175271385,-1062.55625058,0.00022827,2]
[388452461,1759175271460,-10000.01,0.00022827,2]
[388452462,1759175271487,-10000.01,0.00022827,2]
[388452463,1759175271502,-10000.01,0.00022827,2]
[388452464,1759175271517,-10000.01,0.00022827,2]
[388452465,1759175271532,-10000.01,0.00022827,2]
[388452466,1759175271570,-10000.01,0.00022827,2]
[388452467,1759175271690,-10000.01,0.00022827,2]
[388452468,1759175280761,-1759.31,0.00022817,3]
[388452469,1759175280792,-480.0,0.00022822,2]
[388452470,1759175280824,-2525.06,0.00022822,2]
[388452471,1759175280898,-471.27,0.00022826,2]
[388452472,1759175300772,-722.70440354,0.00022728,2]
[388452473,1759175300801,-879.66,0.00022817,3]
[388452474,1759175300829,-621.88,0.00022817,3]
[388452475,1759175300858,-308.67,0.00022817,10]
[388452476,1759175300886,-480.0,0.00022822,2]
[388452477,1759175300915,-1667.48119292,0.00022822,2]
[388452478,1759175301017,-639.21880708,0.00022822,2]
[388452479,1759175301108,-667.4,0.00022822,2]
[388452480,1759175301136,-481.03289711,0.00022822,2]
[388452481,1759175301165,-1348.8,0.00022822,2]
[388452482,1759175301197,-480.0,0.00022822,2]
[388452483,1759175301226,-300.0,0.00022825,2]
[388452484,1759175301255,-126.92,0.00022826,2]
[388452485,1759175301284,-500.0,0.00022826,2]
[388452486,1759175301312,-500.0,0.00022826,2]
[388452487,1759175301340,-546.19,0.00022826,2]
[388452488,1759175301471,-535.91,0.00022826,2]
[388452489,1759175301499,-381.79477701,0.00022826,2]